Workbook

Sheet Sched 76 - % of Rate Base
A1: Staff Calculation of Year 1 Revenue Requirement Amount to Refund to Customers | H1: Exh. BAE-8
A2: For EDIT and ADFIT related to Accounting Petition and AFUDC Equity Portion Deferral | H2: Docket UE-200900/UG-200901/UE-200894
H3: Page 1 of 2
A7: Schedule 76 Electric Rate Spread - Percentage of Rate Base
D9: Base Tariff | G9: Base | H9: Proposed
D10: Revenue | F10: Percentage | G10: Tariff | H10: Tax | N10: Schedule 76 Rate Design
B11: Type of | C11: Schedule | D11: Under Present | E11: Total | F11: of Rate | G11: Percent | H11: Customer
A12: No. | B12: Service | C12: Number | D12: Rates(1) | E12: Rate Base | F12: Base | G12: Increase | H12: Credit | R12: Sch 76
B13: (a) | C13: (b) | D13: (c) | E13: (d) | F13: (e) | G13: (f) | H13: (g) | N13: Residential Service - Schedule 1 & 2 | R13: Tax Rate
N14: Energy Charge: | P14: Billing Determinants | Q14: Base Rates | R14: Credit | S14: Credit | T14: Percentage
A15: 1 | B15: Residential | C15: 1/2 | D15: 232554.0388 | E15: =C43/1000 -> 1000841.966 | F15: =E15/$E$27 -> 0.5330553796 | G15: =F15*$D$30/D15 -> 0.03337702619 | H15: =G15*D15 -> 7761.962241 | K15: =F15/D15 -> 2.292178551e-06 | N15: First 800 kWhs | P15: 1624555176 | Q15: 0.08103 | R15: =Q15*$V$15 -> 0.003009650008 | S15: =P15*R15 -> 4889342.497 | T15: =R15/Q15 -> 0.03714241649 | V15: 0.03714241649 | W15: =H15*1000-S18 -> 0
N16: 800 - 1,500 kWhs | P16: 484025314.5 | Q16: 0.09427 | R16: =Q16*$V$15 -> 0.003501415602 | S16: =P16*R16 -> 1694773.788 | T16: =R16/Q16 -> 0.03714241649
A17: 2 | B17: General Service | C17: 11/12 | D17: 77795.98985 | E17: =C44/1000 -> 232908.576 | F17: =E17/$E$27 -> 0.1240487246 | G17: =F17*$D$30/D17 -> 0.02321850686 | H17: =G17*D17 -> 1806.306724 | K17: =F17/D17 -> 1.594538804e-06 | N17: All over 1,500 kWhs | P17: 286905034.7 | Q17: 0.11053 | R17: =Q17*$V$15 -> 0.004105351295 | S17: 1177845.956 | T17: 0.03714241649
P18: 0 | S18: =SUM(S15:S17) -> 7761962.241
A19: 3 | B19: Large General Service | C19: 21/22 | D19: 133265.8333 | E19: =C45/1000 -> 385101.731 | F19: =E19/$E$27 -> 0.2051078556 | G19: =F19*$D$30/D19 -> 0.02241107401 | H19: =G19*D19+0.1 -> 2986.730454 | K19: =F19/D19 -> 1.53908808e-06 | N19: General Services - Schedule 11 & 12
N20: Energy Charge:
A21: 4 | B21: Extra Large General Service | C21: 25 | D21: 68105.02466 | E21: =C46/1000 -> 181619.969 | F21: =E21/$E$27 -> 0.09673205642 | G21: =F21*$D$30/D21 -> 0.0206819013 | H21: =G21*D21 -> 1408.541398 | K21: 1.42033656e-06 | N21: First 3,650 kWhs | P21: 435222743.1 | Q21: 0.11686 | R21: =Q21*$V$21 -> 0.003155617872 | S21: =P21*R21 -> 1373396.666 | T21: =R21/Q21 -> 0.02700340469 | V21: 0.02700340469 | W21: =H17*1000-S23 -> 0
N22: All over 3,650 kWhs | P22: 186675410.5 | Q22: 0.08588 | R22: =Q22*$V$21 -> 0.002319052394 | S22: 432910.0576 | T22: 0.02700340469
A23: 5 | B23: Pumping Service | C23: 30/31/32 | D23: 12229.34005 | E23: =C47/1000 -> 43824.83 | F23: =E23/$E$27 -> 0.02334140872 | G23: =F23*$D$30/D23 -> 0.0277922199 | H23: =G23*D23+0.1 -> 339.9805079 | K23: 1.908640092e-06 | P23: 0 | S23: =SUM(S20:S22) -> 1806306.724
A25: 6 | B25: Street & Area Lights | C25: 41-48 | D25: 6628.665002 | E25: =C48/1000 -> 33259.928 | F25: =E25/$E$27 -> 0.01771446857 | G25: =F25*$D$30/D25 -> 0.0389135858 | H25: =G25*D25 -> 257.9451243 | K25: 2.672403653e-06 | N25: Large General Service - Schedule 21 & 22
N26: Energy Charge:
A27: 7 | B27: Total | D27: =SUM(D15:D25)+0.2 -> 530579.0917 | E27: =SUM(E15:E25)+0.2 -> 1877557.2 | G27: =D30/$D$27 -> 0.02744410443 | H27: =SUM(H15:H25) -> 14561.46645 | N27: First 250,000 kWhs | P27: 1223990540 | Q27: 0.07535 | R27: =Q27*$V$27 -> 0.002205451458 | S27: =P27*R27 -> 2699451.722 | T27: =R27/Q27 -> 0.02926942878 | V27: 0.02926942878 | W27: =H19*1000-S29 -> 0
H28: =ROUND(H27-D30,0) -> 0 | N28: All over 250,000 kWhs | P28: 145579586 | Q28: 0.06742 | R28: =Q28*$V$27 -> 0.001973344888 | S28: 287278.7319 | T28: 0.02926942878
P29: 0 | S29: =SUM(S26:S28) -> 2986730.454
A30: 8 | B30: Revenue Requirement from BAE-7, Ln 64 | D30: =14561268/1000 -> 14561.268 | F30: =D30/D27 -> 0.02744410443
N31: Extra Large General Service - Schedule 25
N32: Energy Charge:
N33: First 500,000 kWhs | P33: 132000000 | Q33: 0.05505 | R33: =Q33*$V$33 -> 0.001519376178 | S33: =P33*R33 -> 200557.6555 | T33: =R33/Q33 -> 0.02759993058 | V33: 0.02759993058 | W33: =H21*1000-S36 -> 0
N34: 500,000 - 6,000,000 kWhs | P34: 555959799.3 | Q34: 0.04953 | R34: =Q34*$V$33 -> 0.001367024561 | S34: =P34*R34 -> 760010.7009 | T34: =R34/Q34 -> 0.02759993058
N35: All over 6,000,000 kWhs | P35: 383257334.6 | Q35: 0.04235 | R35: =Q35*$V$33 -> 0.00116885706 | S35: 447973.0413 | T35: 0.02759993058
A36: 9 | B36: Bill Impact | C36: 914 | D36: kwh | P36: 0 | S36: =SUM(S33:S35) -> 1408541.398
A37: 10 | B37: Present Bill | C37: =9+IF(C36>800,(800*0.07858)+((C36-800)*0.09182),C36*0.07858) -> 82.33148 | N37: Pumping Service - Schedule 31 & 32
A38: 11 | B38: Schedule 76 | C38: =IF(C36>800,(800*-R15)+((C36-800)*-R16),C36*R15) -> -2.806881385 | N38: Energy Charge:
A39: 12 | B39: Proposed Bill | C39: =C37+C38 -> 79.52459861 | N39: First 85 kW/kWh | P39: 46811884.74 | Q39: 0.10292 | R39: =Q39*$V$39 -> 0.002434988352 | S39: =P39*R39 -> 113986.3941 | T39: =R39/Q39 -> 0.02365903957 | V39: 0.02365903957 | W39: =H23*1000-S42 -> 0
C40: =C38/C37 -> -0.03409244417 | N40: Next 80 kW/kWh | P40: 92811168.3 | Q40: 0.10292 | R40: =Q40*$V$39 -> 0.002434988352 | S40: =P40*R40 -> 225994.1138 | T40: =R40/Q40 -> 0.02365903957
N41: All additional kWhs | P41: 0 | Q41: 0.0735 | R41: =Q41*$V$39 -> 0.001738939408 | S41: 0 | T41: 0.02365903957
C42: Total Rate Base (per TLK-E-5) | P42: 0 | S42: =SUM(S39:S41) -> 339980.5079
B43: Sch 1-2 | C43: 1000841966 | D43: =C43/$C$49 -> 0.5330554364 | E43: =($D$30*D43) -> 7761.963068 | F43: =E43/D15 -> 0.03337702974 | N43: Street & Area Lights - Schedules 41-48
B44: Sch 11-22 | C44: 232908576 | D44: 0.1240487378 | E44: =($D$30*D44) -> 1806.306916 | F44: =E44/D17 -> 0.02321850933
B45: Sch 21-22 | C45: 385101731 | D45: 0.2051078774 | E45: 2986.630772 | F45: =E45/D19 -> 0.0224110764 | N45: 8.3% of base rates
B46: Sch 25 | C46: 181619969 | D46: 0.09673206672 | E46: 1408.541548 | F46: =E46/D21 -> 0.0206819035 | O46: Schedule 41 | P46: 28214.475 | Q46: 0.07709659669 | R46: =Q46*$V$46 -> 0.00300010503 | S46: =P46*R46 -> 84.64638837 | T46: =R46/Q46 -> 0.0389135858 | V46: 0.0389135858 | W46: =H25*1000-S53 -> 0
B47: Sch 30-32 | C47: 43824830 | D47: 0.02334141121 | E47: 339.8805441 | F47: =E47/D23 -> 0.02779222286 | O47: Schedule 42 | P47: 9111659.554 | Q47: 0.4617844439 | R47: 0.01796968858 | S47: 163733.6846 | T47: 0.0389135858
B48: Sch 41-48 | C48: 33259928 | D48: 0.01771447045 | E48: 257.9451517 | F48: =E48/D25 -> 0.03891358994 | O48: Schedule 44 | P48: 123112.3519 | Q48: 0.1945150071 | R48: 0.007569276417 | S48: 931.8714218 | T48: 0.0389135858
B49: Total | C49: =SUM(C43:C48) -> 1877557000 | D49: =SUM(D43:D48) -> 1 | E49: =SUM(E43:E48) -> 14561.268 | F49: =E49/D27 -> 0.02744410443 | O49: Schedule 45 | P49: 424923.172 | Q49: 0.07683704291 | R49: 0.002990004862 | S49: 1270.52235 | T49: 0.0389135858
O50: Schedule 46 | P50: 1041932.984 | Q50: 0.1041411316 | R50: 0.004052504859 | S50: 4222.438481 | T50: 0.0389135858
O51: Schedule 47 | P51: 4732835.947 | Q51: 0.3047292778 | R51: 0.0118581089 | S51: 56122.48404 | T51: 0.0389135858
O52: Schedule 48 | P52: 2499245.176 | Q52: 0.3247093681 | R52: 0.01263560586 | S52: 31579.47698 | T52: 0.0389135858
P53: 17961923.66 | S53: =SUM(S46:S52) -> 257945.1243
P54: 0
R55: Check | S55: =S53+S42+S36+S29+S23+S18-(H27*1000) -> 0
N57: Original
N58: Schedule 76
N61: Residential Service - Schedule 1 & 2 | U61: Extra Large General Service - Schedule 25
N62: Energy Charge: | U62: Energy Charge:
N63: First 800 kWhs | R63: 0.05505 | U63: First 500,000 kWhs | X63: 0
N64: 800 - 1,500 kWhs | R64: 0.04953 | U64: 500,000 - 6,000,000 kWhs | X64: 0
N65: All over 1,500 kWhs | R65: 0.04235 | U65: All over 6,000,000 kWhs | X65: 0
N67: General Services - Schedule 11 & 12 | U67: Pumping Service - Schedule 31 & 32
N68: Energy Charge: | U68: Energy Charge:
N69: First 3,650 kWhs | R69: 0 | U69: First 85 kW/kWh | X69: 0
N70: All over 3,650 kWhs | R70: 0 | U70: Next 80 kW/kWh | X70: 0
U71: All additional kWhs | X71: 0
N73: Large General Service - Schedule 21 & 22 | U73: Street & Area Lights - Schedules 41-48
N74: Energy Charge:
N75: First 250,000 kWhs | R75: 0.00899 | U75: 8.3% of base rates
N76: All over 250,000 kWhs | R76: 0.00642

Sheet Sched 176 % of Rate Base
A1: Staff Calculation of Year 1 Revenue Requirement Amount to Refund to Customers | H1: Exh. BAE-8
A2: For EDIT and ADFIT related to Accounting Petition and AFUDC Equity Portion Deferral | H2: Docket UE-200900/UG-200901/UE-200894
H3: Page 2 of 2
A7: Schedule 176 Gas Rate Spread - Percentage of Rate Base
D9: Base Tariff | G9: Base | H9: Proposed
D10: Revenue | F10: Percentage | G10: Tariff | H10: Tax
B11: Type of | C11: Schedule | D11: Under Present | E11: Total | F11: of Rate | G11: Percent | H11: Customer | N11: Schedule 176 Rate Design
A12: No. | B12: Service | C12: Number | D12: Rates(1) | E12: Rate Base | F12: Base | G12: Increase | H12: Credit
B13: (a) | C13: (b) | D13: (c) | E13: (d) | F13: (e) | G13: (f) | H13: (g) | R13: Sch 176
N14: General Service - Schedule 101 & 102 | R14: Tax Rate
A15: 1 | B15: General Service | C15: 101/102 | D15: 79468.39043 | E15: =C39/1000 -> 589374.734 | F15: =E15/E23 -> 0.8073248256 | G15: =F15*$D$26/D15 -> 0.06723688085 | H15: =G15*D15 -> 5343.206699 | K15: =F15/D15 -> 1.015906855e-05 | N15: Energy Charge: | P15: Billing Determinants | Q15: Base Rates | R15: Credit | S15: Credit | T15: Percentage
N16: First 70 Therms | P16: 79959168.39 | Q16: 0.41035 | R16: =Q16*$V$16 -> 0.03617102005 | S16: =P16*R16 -> 2892204.683 | T16: =R16/Q16 -> 0.0881467529 | V16: 0.0881467529 | W16: =H15*1000-S18 -> 0
A17: 2 | B17: Large General Service | C17: 111/112/116 | D17: 20145.48068 | E17: =C40/1000 -> 102455.058 | F17: =E17/E23 -> 0.1403428194 | G17: =F17*$D$26/D17 -> 0.04610693256 | H17: =G17*D17 -> 928.8463191 | K17: =F17/D17 -> 6.966466653e-06 | N17: All over 70 Therms | P17: 52136435.56 | Q17: 0.53333 | R17: =Q17*$V$16 -> 0.04701130772 | S17: =P17*R17 -> 2451002.016 | T17: =R17/Q17 -> 0.0881467529
P18: 0 | S18: =SUM(S16:S17) -> 5343206.699
A19: 3 | B19: Interruptible Service | C19: 131/132 | D19: 216.98343 | E19: =C41/1000 -> 1350.412 | F19: =E19/E23 -> 0.001849792788 | G19: =F19*$D$26/D19 -> 0.05642222121 | H19: =G19*D19 -> 12.24268709 | K19: =F19/D19 -> 8.525041696e-06 | N19: Large General Services - Schedule 111/112/116
N20: Energy Charge:
A21: 4 | B21: Transportation Service | C21: 146 | D21: 3580.860637 | E21: =C42/1000 -> 36853.797 | F21: =E21/E23 -> 0.05048228829 | G21: =F21*$D$26/D21 -> 0.09330507819 | H21: =G21*D21+0.1 -> 334.2124817 | K21: =F21/D21 -> 1.409780872e-05 | N21: First 200 therms | P21: 6563649.979 | Q21: 0.5378 | R21: =Q21*$V$21 -> 0.02539780953 | S21: =P21*R21 -> 166702.332 | T21: =R21/Q21 -> 0.0472253803 | V21: 0.0472253803 | W21: =H17*1000-S26 -> 0
N22: 200 - 1,000 therms | P22: 17370505.2 | Q22: 0.36159 | R22: =Q22*$V$21 -> 0.01707622526 | S22: =P22*R22 -> 296622.6598 | T22: =R22/Q22 -> 0.0472253803
A23: 5 | B23: Total | D23: =SUM(D15:D22)+0.2 -> 103411.9152 | E23: =SUM(E15:E22)+0.2 -> 730034.201 | G23: =D26/$D$23 -> 0.06400045864 | H23: =SUM(H15:H22) -> 6618.508187 | N23: 1,000 - 10,000 therms | P23: 34375335.18 | Q23: 0.27562 | R23: =Q23*$V$21 -> 0.01301625932 | S23: =P23*R23 -> 447438.2769 | T23: =R23/Q23 -> 0.0472253803
H24: =ROUND(H23-D26,0) -> 0 | N24: 10,000 - 25,000 therms | P24: 715938.6177 | Q24: 0.23517 | R24: =Q24*$V$21 -> 0.01110599269 | S24: =P24*R24 -> 7951.209051 | T24: =R24/Q24 -> 0.0472253803
N25: All over 25,000 therms | P25: 1300492.788 | Q25: 0.16497 | R25: =Q25*$V$21 -> 0.007790770988 | S25: =P25*R25 -> 10131.84149 | T25: =R25/Q25 -> 0.0472253803
A26: 6 | B26: Revenue Requirement | D26: =6618410/1000 -> 6618.41 | F26: =D26/D23 -> 0.06400045864 | P26: 0 | S26: =SUM(S20:S25) -> 928846.3191
N28: Interuptible Service - Schedule 131/132
N29: Energy Charge:
N30: First 10,000 therms | P30: 220000 | Q30: 0.27008 | R30: =Q30*$V$30 -> 0.01523851374 | S30: =P30*R30 -> 3352.473023 | T30: =R30/Q30 -> 0.05642222209 | V30: 0.05642222209 | W30: =H19*1000-S34 -> 0
N31: 10,000 - 25,000 therms | P31: 285403.258 | Q31: 0.21681 | R31: =Q31*$V$30 -> 0.01223290197 | S31: =P31*R31 -> 3491.310078 | T31: =R31/Q31 -> 0.05642222209
A32: 7 | B32: Bill Impact | C32: 67 | D32: Therms | N32: 25,000 - 50,000 therms | P32: 317689.055 | Q32: 0.20373 | R32: =Q32*$V$30 -> 0.01149489931 | S32: =P32*R32 -> 3651.803698 | T32: =R32/Q32 -> 0.05642222209
A33: 8 | B33: Present Bill | C33: =9.5+IF(C32>70,(70*0.70194)+((C32-70)*0.82492),C32*0.70194) -> 56.52998 | N33: All over 50,000 therms | P33: 170107.977 | Q33: 0.18203 | R33: =Q33*$V$30 -> 0.01027053709 | S33: =P33*R33 -> 1747.100287 | T33: =R33/Q33 -> 0.05642222209
A34: 9 | B34: Schedule 176 | C34: =IF(C32>70,(70*-R16)+((C32-70)*-R17),C32*-R16) -> -2.423458343 | P34: 0 | S34: =SUM(S29:S33) -> 12242.68709
A35: 10 | B35: Proposed Bill | C35: =C33+C34 -> 54.10652166
C36: =C34/C33 -> -0.0428703202 | N36: Transportation Service - Schedule 146
N37: Energy Charge:
C38: Total Rate Base (per JCA-G-64) | N38: First 20,000 therms | P38: 8146142 | Q38: 0.10494 | R38: =Q38*$V$38 -> 0.01072775727 | S38: =P38*R38 -> 87389.8341 | T38: =R38/Q38 -> 0.1022275326 | V38: 0.1022275326 | W38: =H21*1000-S43 -> 0
B39: Sch 101-102 | C39: 589374734 | D39: =C39/$C$43 -> 0.8073250468 | E39: =($D$26*D39) -> 5343.208163 | F39: =E39/D15 -> 0.06723689927 | N39: 20,000 - 50,000 therms | P39: 8282125 | Q39: 0.09336 | R39: =Q39*$V$38 -> 0.009543962446 | S39: =P39*R39 -> 79044.28998 | T39: =R39/Q39 -> 0.1022275326
B40: Sch 111/112/116 | C40: 102455058 | D40: =C40/$C$43 -> 0.1403428578 | E40: =($D$26*D40) -> 928.8465736 | F40: =E40/D17 -> 0.04610694519 | N40: 50,000 - 300,000 therms | P40: 14410467 | Q40: 0.08419 | R40: =Q40*$V$38 -> 0.008606535972 | S40: =P40*R40 -> 124024.2026 | T40: =R40/Q40 -> 0.1022275326
B41: Sch 131/132 | C41: 1350412 | D41: =C41/$C$43 -> 0.001849793295 | E41: =($D$26*D41) -> 12.24269044 | F41: =E41/D19 -> 0.05642223667 | N41: 300,000 - 500,000 therms | P41: 2975780.868 | Q41: 0.07785 | R41: =Q41*$V$38 -> 0.007958413415 | S41: =P41*R41 -> 23682.49438 | T41: =R41/Q41 -> 0.1022275326
B42: Sch 146 | C42: 36853797 | D42: =C42/$C$43 -> 0.05048230212 | E42: =($D$26*D42) -> 334.1125732 | F42: =E42/D21 -> 0.09330510375 | N42: All over 500,000 therms | P42: 3355717 | Q42: 0.05851 | R42: =Q42*$V$38 -> 0.005981332934 | S42: =P42*R42 -> 20071.66061 | T42: =R42/Q42 -> 0.1022275326
B43: Total | C43: =SUM(C39:C42) -> 730034001 | D43: =SUM(D39:D42) -> 1 | E43: =SUM(E39:E42) -> 6618.41 | F43: =E43/D23 -> 0.06400045864 | P43: 0 | S43: =SUM(S38:S42) -> 334212.4817
R45: Check | S45: =S18+S26+S34+S43-(H23*1000) -> 0
M47: Original
M48: General Service - Schedules 101 & 102 | Q48: Interruptible Service - Schedules 131 & 132
M49: Usage Charge: | Q49: Usage Charge:
M50: First 70 Therms | O50: 0.06654 | Q50: First 10,000 therms | S50: 0.0334
M51: All over 70 Therms | O51: 0.08647 | Q51: 10,000 - 25,000 therms | S51: 0.02682
Q52: 25,000 - 50,000 therms | S52: 0.0252
Q53: All over 50,000 therms | S53: 0.02251
M55: Large General Service - Schedules 111, 112 & 116 | Q55: Transportation Service - Schedule 146
M56: Usage Charge: | Q56: Usage Charge:
M57: First 200 therms | O57: 0.0795 | Q57: First 20,000 therms | S57: 0.0141
M58: 200 - 1,000 therms | O58: 0.04255 | Q58: 20,000 - 50,000 therms | S58: 0.01255
M59: 1,000 - 10,000 therms | O59: 0.03244 | Q59: 50,000 - 300,000 therms | S59: 0.01131
M60: 10,000 - 25,000 therms | O60: 0.02768 | Q60: 300,000 - 500,000 therms | S60: 0.01046
M61: All over 25,000 therms | O61: 0.01941 | Q61: All over 500,000 therms | S61: 0.00786

Sheet BFG (hidden)
A1: AVISTA UTILITIES
A2: GAS ANNUAL MINIMUM DEFICIENCY FOR B.F. GOODRICH
A3: STATE OF WASHINGTON
A4: BASED ON 2007 ANNUAL MINIMUM
F6: Gas
A7: Annual Minimum Usage Requirement(1) | F7: 10500000
A8: Less: Jan 09 - Dec 09 Usage(2) | F8: =SUMIF(#REF!,"BF Goodrich",#REF!) -> 
A9: Usage Deficiency | F9: =F7-F8 -> 
A10: Deficiency Charge per therm(3) | F10: 0
A11: Annual Minimum Deficiency | F11: =F9*F10 -> 
A16: (1) Per Contract - workpaper BJH-G-36
A17: (2) From workpaper BJH-G-9
A18: (3) From workpaper BJH-G-35
A21: ** Annual Minimum Ended in 2009
F24: =ROUND(F11-#REF!,0) -> 
